{"text_format":"3","workbook":"xlsx","n_sheets":1,"sheets":["Kaubaloend"],"not_rendered":{"images":1,"defined_names":3},"read":"whole","date_system":"1900"}

{"sheet":"Kaubaloend","index":0,"n_rows":28,"n_cols":13,"rows_kept":28}
[{"$nulls":12}," "]
[{"$nulls":10},"Kas tõsta juurdetellitavad kaubad esile?","Jah"]
[null,"Juurdetellimiseks","Lao ID","Nimi","Kirjeldus","Ühiku hind","Kogus laos","Kauba väärtus","Juurdetellimise tase","Juurdetellimise aeg päevades","Juurdetellitav kogus","Lõpetatud?"]
[null,{"$f":"IFERROR((Kaubaloendi_Tabel[[#This Row],[Kogus laos]]<=Kaubaloendi_Tabel[[#This Row],[Juurdetellimise tase]])*(Kaubaloendi_Tabel[[#This Row],[Lõpetatud?]]=\"\")*väärtEsiletõst,0)","v":1},"IN0001","Kaup 1","Kirjeldus 1",{"v":51,"d":"51.00 €"},25,{"$f":"Kaubaloendi_Tabel[[#This Row],[Ühiku hind]]*Kaubaloendi_Tabel[[#This Row],[Kogus laos]]","v":{"v":1275,"d":"1,275.00 €"}},29,13,50]
[null,{"$f":"IFERROR((Kaubaloendi_Tabel[[#This Row],[Kogus laos]]<=Kaubaloendi_Tabel[[#This Row],[Juurdetellimise tase]])*(Kaubaloendi_Tabel[[#This Row],[Lõpetatud?]]=\"\")*väärtEsiletõst,0)","v":1},"IN0002","Üksus 2","Kirjeldus 2",{"v":93,"d":"93.00 €"},132,{"$f":"Kaubaloendi_Tabel[[#This Row],[Ühiku hind]]*Kaubaloendi_Tabel[[#This Row],[Kogus laos]]","v":{"v":12276,"d":"12,276.00 €"}},231,4,50]
[null,{"$f":"IFERROR((Kaubaloendi_Tabel[[#This Row],[Kogus laos]]<=Kaubaloendi_Tabel[[#This Row],[Juurdetellimise tase]])*(Kaubaloendi_Tabel[[#This Row],[Lõpetatud?]]=\"\")*väärtEsiletõst,0)","v":0},"IN0003","Tooteartikkel 3","Kirjeldus 3",{"v":57,"d":"57.00 €"},151,{"$f":"Kaubaloendi_Tabel[[#This Row],[Ühiku hind]]*Kaubaloendi_Tabel[[#This Row],[Kogus laos]]","v":{"v":8607,"d":"8,607.00 €"}},114,11,150]
[null,{"$f":"IFERROR((Kaubaloendi_Tabel[[#This Row],[Kogus laos]]<=Kaubaloendi_Tabel[[#This Row],[Juurdetellimise tase]])*(Kaubaloendi_Tabel[[#This Row],[Lõpetatud?]]=\"\")*väärtEsiletõst,0)","v":0},"IN0004","Tooteartikkel 4","Kirjeldus 4",{"v":19,"d":"19.00 €"},186,{"$f":"Kaubaloendi_Tabel[[#This Row],[Ühiku hind]]*Kaubaloendi_Tabel[[#This Row],[Kogus laos]]","v":{"v":3534,"d":"3,534.00 €"}},158,6,50]
[null,{"$f":"IFERROR((Kaubaloendi_Tabel[[#This Row],[Kogus laos]]<=Kaubaloendi_Tabel[[#This Row],[Juurdetellimise tase]])*(Kaubaloendi_Tabel[[#This Row],[Lõpetatud?]]=\"\")*väärtEsiletõst,0)","v":0},"IN0005","Tooteartikkel 5","Kirjeldus 5",{"v":75,"d":"75.00 €"},62,{"$f":"Kaubaloendi_Tabel[[#This Row],[Ühiku hind]]*Kaubaloendi_Tabel[[#This Row],[Kogus laos]]","v":{"v":4650,"d":"4,650.00 €"}},39,12,50]
[null,{"$f":"IFERROR((Kaubaloendi_Tabel[[#This Row],[Kogus laos]]<=Kaubaloendi_Tabel[[#This Row],[Juurdetellimise tase]])*(Kaubaloendi_Tabel[[#This Row],[Lõpetatud?]]=\"\")*väärtEsiletõst,0)","v":1},"IN0006","Tooteartikkel 6","Kirjeldus 6",{"v":11,"d":"11.00 €"},5,{"$f":"Kaubaloendi_Tabel[[#This Row],[Ühiku hind]]*Kaubaloendi_Tabel[[#This Row],[Kogus laos]]","v":{"v":55,"d":"55.00 €"}},9,13,150]
[null,{"$f":"IFERROR((Kaubaloendi_Tabel[[#This Row],[Kogus laos]]<=Kaubaloendi_Tabel[[#This Row],[Juurdetellimise tase]])*(Kaubaloendi_Tabel[[#This Row],[Lõpetatud?]]=\"\")*väärtEsiletõst,0)","v":0},"IN0007","Kaup 7","Kirjeldus 7",{"v":56,"d":"56.00 €"},58,{"$f":"Kaubaloendi_Tabel[[#This Row],[Ühiku hind]]*Kaubaloendi_Tabel[[#This Row],[Kogus laos]]","v":{"v":3248,"d":"3,248.00 €"}},109,7,100,"Jah"]
[null,{"$f":"IFERROR((Kaubaloendi_Tabel[[#This Row],[Kogus laos]]<=Kaubaloendi_Tabel[[#This Row],[Juurdetellimise tase]])*(Kaubaloendi_Tabel[[#This Row],[Lõpetatud?]]=\"\")*väärtEsiletõst,0)","v":1},"IN0008","Kaup 8","Kirjeldus 8",{"v":38,"d":"38.00 €"},101,{"$f":"Kaubaloendi_Tabel[[#This Row],[Ühiku hind]]*Kaubaloendi_Tabel[[#This Row],[Kogus laos]]","v":{"v":3838,"d":"3,838.00 €"}},162,3,100]
[null,{"$f":"IFERROR((Kaubaloendi_Tabel[[#This Row],[Kogus laos]]<=Kaubaloendi_Tabel[[#This Row],[Juurdetellimise tase]])*(Kaubaloendi_Tabel[[#This Row],[Lõpetatud?]]=\"\")*väärtEsiletõst,0)","v":0},"IN0009","Kaup 9","Kirjeldus 9",{"v":59,"d":"59.00 €"},122,{"$f":"Kaubaloendi_Tabel[[#This Row],[Ühiku hind]]*Kaubaloendi_Tabel[[#This Row],[Kogus laos]]","v":{"v":7198,"d":"7,198.00 €"}},82,3,150]
[null,{"$f":"IFERROR((Kaubaloendi_Tabel[[#This Row],[Kogus laos]]<=Kaubaloendi_Tabel[[#This Row],[Juurdetellimise tase]])*(Kaubaloendi_Tabel[[#This Row],[Lõpetatud?]]=\"\")*väärtEsiletõst,0)","v":1},"IN0010","Kaup 10","Kirjeldus 10",{"v":50,"d":"50.00 €"},175,{"$f":"Kaubaloendi_Tabel[[#This Row],[Ühiku hind]]*Kaubaloendi_Tabel[[#This Row],[Kogus laos]]","v":{"v":8750,"d":"8,750.00 €"}},283,8,150]
[null,{"$f":"IFERROR((Kaubaloendi_Tabel[[#This Row],[Kogus laos]]<=Kaubaloendi_Tabel[[#This Row],[Juurdetellimise tase]])*(Kaubaloendi_Tabel[[#This Row],[Lõpetatud?]]=\"\")*väärtEsiletõst,0)","v":1},"IN0011","Kaup 11","Kirjeldus 11",{"v":59,"d":"59.00 €"},176,{"$f":"Kaubaloendi_Tabel[[#This Row],[Ühiku hind]]*Kaubaloendi_Tabel[[#This Row],[Kogus laos]]","v":{"v":10384,"d":"10,384.00 €"}},229,1,100]
[null,{"$f":"IFERROR((Kaubaloendi_Tabel[[#This Row],[Kogus laos]]<=Kaubaloendi_Tabel[[#This Row],[Juurdetellimise tase]])*(Kaubaloendi_Tabel[[#This Row],[Lõpetatud?]]=\"\")*väärtEsiletõst,0)","v":1},"IN0012","Kaup 12","Kirjeldus 12",{"v":18,"d":"18.00 €"},22,{"$f":"Kaubaloendi_Tabel[[#This Row],[Ühiku hind]]*Kaubaloendi_Tabel[[#This Row],[Kogus laos]]","v":{"v":396,"d":"396.00 €"}},36,12,50]
[null,{"$f":"IFERROR((Kaubaloendi_Tabel[[#This Row],[Kogus laos]]<=Kaubaloendi_Tabel[[#This Row],[Juurdetellimise tase]])*(Kaubaloendi_Tabel[[#This Row],[Lõpetatud?]]=\"\")*väärtEsiletõst,0)","v":1},"IN0013","Kaup 13","Kirjeldus 13",{"v":26,"d":"26.00 €"},72,{"$f":"Kaubaloendi_Tabel[[#This Row],[Ühiku hind]]*Kaubaloendi_Tabel[[#This Row],[Kogus laos]]","v":{"v":1872,"d":"1,872.00 €"}},102,9,100]
[null,{"$f":"IFERROR((Kaubaloendi_Tabel[[#This Row],[Kogus laos]]<=Kaubaloendi_Tabel[[#This Row],[Juurdetellimise tase]])*(Kaubaloendi_Tabel[[#This Row],[Lõpetatud?]]=\"\")*väärtEsiletõst,0)","v":1},"IN0014","Kaup 14","Kirjeldus 14",{"v":42,"d":"42.00 €"},62,{"$f":"Kaubaloendi_Tabel[[#This Row],[Ühiku hind]]*Kaubaloendi_Tabel[[#This Row],[Kogus laos]]","v":{"v":2604,"d":"2,604.00 €"}},83,2,100]
[null,{"$f":"IFERROR((Kaubaloendi_Tabel[[#This Row],[Kogus laos]]<=Kaubaloendi_Tabel[[#This Row],[Juurdetellimise tase]])*(Kaubaloendi_Tabel[[#This Row],[Lõpetatud?]]=\"\")*väärtEsiletõst,0)","v":0},"IN0015","Kaup 15","Kirjeldus 15",{"v":32,"d":"32.00 €"},46,{"$f":"Kaubaloendi_Tabel[[#This Row],[Ühiku hind]]*Kaubaloendi_Tabel[[#This Row],[Kogus laos]]","v":{"v":1472,"d":"1,472.00 €"}},23,15,50]
[null,{"$f":"IFERROR((Kaubaloendi_Tabel[[#This Row],[Kogus laos]]<=Kaubaloendi_Tabel[[#This Row],[Juurdetellimise tase]])*(Kaubaloendi_Tabel[[#This Row],[Lõpetatud?]]=\"\")*väärtEsiletõst,0)","v":1},"IN0016","Kaup 16","Kirjeldus 16",{"v":90,"d":"90.00 €"},96,{"$f":"Kaubaloendi_Tabel[[#This Row],[Ühiku hind]]*Kaubaloendi_Tabel[[#This Row],[Kogus laos]]","v":{"v":8640,"d":"8,640.00 €"}},180,3,50]
[null,{"$f":"IFERROR((Kaubaloendi_Tabel[[#This Row],[Kogus laos]]<=Kaubaloendi_Tabel[[#This Row],[Juurdetellimise tase]])*(Kaubaloendi_Tabel[[#This Row],[Lõpetatud?]]=\"\")*väärtEsiletõst,0)","v":0},"IN0017","Kaup 17","Kirjeldus 17",{"v":97,"d":"97.00 €"},57,{"$f":"Kaubaloendi_Tabel[[#This Row],[Ühiku hind]]*Kaubaloendi_Tabel[[#This Row],[Kogus laos]]","v":{"v":5529,"d":"5,529.00 €"}},98,12,50,"Jah"]
[null,{"$f":"IFERROR((Kaubaloendi_Tabel[[#This Row],[Kogus laos]]<=Kaubaloendi_Tabel[[#This Row],[Juurdetellimise tase]])*(Kaubaloendi_Tabel[[#This Row],[Lõpetatud?]]=\"\")*väärtEsiletõst,0)","v":1},"IN0018","Kaup 18","Kirjeldus 18",{"v":12,"d":"12.00 €"},6,{"$f":"Kaubaloendi_Tabel[[#This Row],[Ühiku hind]]*Kaubaloendi_Tabel[[#This Row],[Kogus laos]]","v":{"v":72,"d":"72.00 €"}},7,13,50]
[null,{"$f":"IFERROR((Kaubaloendi_Tabel[[#This Row],[Kogus laos]]<=Kaubaloendi_Tabel[[#This Row],[Juurdetellimise tase]])*(Kaubaloendi_Tabel[[#This Row],[Lõpetatud?]]=\"\")*väärtEsiletõst,0)","v":1},"IN0019","Kaup 19","Kirjeldus 19",{"v":82,"d":"82.00 €"},143,{"$f":"Kaubaloendi_Tabel[[#This Row],[Ühiku hind]]*Kaubaloendi_Tabel[[#This Row],[Kogus laos]]","v":{"v":11726,"d":"11,726.00 €"}},164,12,150]
[null,{"$f":"IFERROR((Kaubaloendi_Tabel[[#This Row],[Kogus laos]]<=Kaubaloendi_Tabel[[#This Row],[Juurdetellimise tase]])*(Kaubaloendi_Tabel[[#This Row],[Lõpetatud?]]=\"\")*väärtEsiletõst,0)","v":0},"IN0020","Kaup 20","Kirjeldus 20",{"v":16,"d":"16.00 €"},124,{"$f":"Kaubaloendi_Tabel[[#This Row],[Ühiku hind]]*Kaubaloendi_Tabel[[#This Row],[Kogus laos]]","v":{"v":1984,"d":"1,984.00 €"}},113,14,50]
[null,{"$f":"IFERROR((Kaubaloendi_Tabel[[#This Row],[Kogus laos]]<=Kaubaloendi_Tabel[[#This Row],[Juurdetellimise tase]])*(Kaubaloendi_Tabel[[#This Row],[Lõpetatud?]]=\"\")*väärtEsiletõst,0)","v":0},"IN0021","Kaup 21","Kirjeldus 21",{"v":19,"d":"19.00 €"},112,{"$f":"Kaubaloendi_Tabel[[#This Row],[Ühiku hind]]*Kaubaloendi_Tabel[[#This Row],[Kogus laos]]","v":{"v":2128,"d":"2,128.00 €"}},75,11,50]
[null,{"$f":"IFERROR((Kaubaloendi_Tabel[[#This Row],[Kogus laos]]<=Kaubaloendi_Tabel[[#This Row],[Juurdetellimise tase]])*(Kaubaloendi_Tabel[[#This Row],[Lõpetatud?]]=\"\")*väärtEsiletõst,0)","v":0},"IN0022","Kaup 22","Kirjeldus 22",{"v":24,"d":"24.00 €"},182,{"$f":"Kaubaloendi_Tabel[[#This Row],[Ühiku hind]]*Kaubaloendi_Tabel[[#This Row],[Kogus laos]]","v":{"v":4368,"d":"4,368.00 €"}},132,15,150]
[null,{"$f":"IFERROR((Kaubaloendi_Tabel[[#This Row],[Kogus laos]]<=Kaubaloendi_Tabel[[#This Row],[Juurdetellimise tase]])*(Kaubaloendi_Tabel[[#This Row],[Lõpetatud?]]=\"\")*väärtEsiletõst,0)","v":0},"IN0023","Kaup 23","Kirjeldus 23",{"v":29,"d":"29.00 €"},106,{"$f":"Kaubaloendi_Tabel[[#This Row],[Ühiku hind]]*Kaubaloendi_Tabel[[#This Row],[Kogus laos]]","v":{"v":3074,"d":"3,074.00 €"}},142,1,150,"Jah"]
[null,{"$f":"IFERROR((Kaubaloendi_Tabel[[#This Row],[Kogus laos]]<=Kaubaloendi_Tabel[[#This Row],[Juurdetellimise tase]])*(Kaubaloendi_Tabel[[#This Row],[Lõpetatud?]]=\"\")*väärtEsiletõst,0)","v":0},"IN0024","Kaup 24","Kirjeldus 24",{"v":75,"d":"75.00 €"},173,{"$f":"Kaubaloendi_Tabel[[#This Row],[Ühiku hind]]*Kaubaloendi_Tabel[[#This Row],[Kogus laos]]","v":{"v":12975,"d":"12,975.00 €"}},127,9,100]
[null,{"$f":"IFERROR((Kaubaloendi_Tabel[[#This Row],[Kogus laos]]<=Kaubaloendi_Tabel[[#This Row],[Juurdetellimise tase]])*(Kaubaloendi_Tabel[[#This Row],[Lõpetatud?]]=\"\")*väärtEsiletõst,0)","v":0},"IN0025","Kaup 25","Kirjeldus 25",{"v":14,"d":"14.00 €"},28,{"$f":"Kaubaloendi_Tabel[[#This Row],[Ühiku hind]]*Kaubaloendi_Tabel[[#This Row],[Kogus laos]]","v":{"v":392,"d":"392.00 €"}},21,8,50]